[Event "Prague Festival Open 2022"]
[Site "Prague"]
[Date "2022.06.11"]
[Round "2.12"]
[White "Popovic, Dusan"]
[Black "Cherniack, Alex"]
[Result "1/2-1/2"]
[ECO "B00"]
[WhiteElo "2480"]
[BlackElo "2214"]
[Annotator "TA"]
[PlyCount "118"]
[EventDate "2022.06.10"]
[EventType "swiss"]
[EventCountry "CZE"]
[SourceTitle "playchess.com"]
[Source "ChessBase"]
[SourceQuality "1"]
[TimeControl "40/5400+30:1800+30"]

{[%evp 9,118,3,0,0,0,13,21,17,56,43,81,84,75,20,39,28,38,45,44,16,25,0,0,-8,-8,-17,-20,-35,-15,-11,-11,-9,0,-14,0,-39,0,0,0,0,0,0,0,0,9,8,32,28,35,14,34,0,0,0,0,0,0,0,0,0,0,0,0,0,0,0,0,0,7,0,0,0,0,0,0,0,0,0,0,0,0,0,0,-7,0,-5,0,0,0,0,0,0,0,0,0,0,0,0,0,0,0,0,0,0,0,0,0,0,0,0,0]} 1. Nf3 {[%emt 0:05:12]} b6 {[%emt 0:01:25]} 2. e4 {[%emt 0:00:08]} Bb7 {[%emt 0:00:05]} 3. Nc3 {[%emt 0:00:05]} Nf6 {[%emt 0:00:30]} 4. e5 {[%emt 0:02:56]} Nd5 {[%emt 0:00:24]} 5. Bc4 {[%emt 0:04:02]} Nxc3 {[%emt 0:01:11]} 6. dxc3 {[%emt 0:00:07][%cal Oe5e6] B00: Queen's Fianchetto Defence, Nimzowitsch Defence.} e6 {[%emt 0:00:22]} 7. Qe2 {[%emt 0:05:07] [#]} Be7 $146 {[%emt 0:07:02]} ({Predecessor:} 7... d6 8. Bf4 Nd7 9. exd6 Bxd6 10. Bg3 Qf6 11. O-O-O Bxf3 12. gxf3 O-O 13. Bb5 Ne5 {1-0 (53) Tereick,B (2429)-Handke,F (2531) Germany 2015}) 8. h4 {[%emt 0:00:30]} h6 {[%emt 0:02:56]} 9. Bf4 {[%emt 0:01:32]} d5 {[%emt 0:10:15]} 10. exd6 $1 {[%emt 0:05:37]} Bxd6 {[%emt 0:03:46]} 11. Ne5 {[%emt 0:17:41] White is more active.} (11. Bb5+ $16 Ke7 12. Be5) 11... Qf6 {[%emt 0:08:13]} 12. Bg3 {[%emt 0:01:35]} (12. Bb5+ {seems wilder.} Ke7 13. Bg3 Rd8 14. h5) 12... O-O {[%emt 0:19:13]} 13. O-O-O {[%emt 0:00:33]} Rd8 {[%emt 0:00:15]} 14. Ng4 {[%emt 0:18:44]} (14. f4 $5 {[%cal Rf4f5]}) 14... Qe7 {[%emt 0:00:58]} 15. Bxd6 {[%emt 0:03:15]} Rxd6 {[%emt 0:07:14]} 16. Rxd6 {[%emt 0:02:50]} cxd6 {[%emt 0:02:16]} 17. f4 {[%emt 0:01:15]} Nd7 {[%emt 0:04:42]} 18. Qf2 {[%emt 0:08:09]} Nf6 {[%emt 0:03:51]} 19. Nxf6+ {[%emt 0:00:20]} Qxf6 {[%emt 0:00:06]} 20. Rf1 {[%emt 0:01:44]} Rc8 {[%emt 0:04:36]} 21. Bd3 {[%emt 0:00:29]} e5 {[%emt 0:03:29]} 22. g3 {[%emt 0:00:04]} exf4 {[%emt 0:05:30]} 23. Qxf4 {[%emt 0:03:59]} Qxf4+ {[%emt 0:00:06]} 24. Rxf4 $15 {[%emt 0:00:03][%mdl 4096] Endgame KRB-KRB} Kf8 {[%emt 0:02:19]} 25. Ra4 {[%emt 0:02:55]} Ra8 {[%emt 0:01:07]} 26. Bf5 {[%emt 0:03:32]} Ke7 {[%emt 0:00:23]} 27. Rc4 {[%emt 0:01:05] Threatens to win with Rc7+.} Bd5 {[%emt 0:02:32]} 28. Rc7+ {[%emt 0:02:01]} Kf6 {[%emt 0:00:06]} 29. Bc8 {[%emt 0:00:31]} a5 {[%emt 0:02:51]} 30. a3 {[%emt 0:04:05]} Rb8 {[%emt 0:00:53] The position is equal.} 31. Kd2 {[%emt 0:00:57]} g5 {[%emt 0:01:17]} 32. hxg5+ {[%emt 0:01:30]} hxg5 {[%emt 0:01:01]} 33. Ke3 {[%emt 0:01:42]} Ke5 {[%emt 0:00:43]} 34. c4 {[%emt 0:01:21]} Be6 {[%emt 0:00:41]} 35. Bxe6 {[%emt 0:00:20]} fxe6 $11 {[%emt 0:01:33] KR-KR} 36. b4 {[%emt 0:01:36]} axb4 {[%emt 0:01:25]} 37. axb4 {[%emt 0:00:01]} Ra8 {[%emt 0:00:30]} 38. c3 {[%emt 0:01:21]} Rb8 {[%emt 0:01:17]} 39. Kf3 {[%emt 0:00:28]} Kf5 {[%emt 0:01:07]} 40. Rc6 {[%emt 0:00:17]} g4+ {[%emt 0:01:08]} 41. Ke3 {[%emt 0:30:13]} Ke5 {[%emt 0:30:39]} 42. Kd3 {[%emt 0:00:00]} Rf8 {[%emt 0:00:00]} 43. Rxb6 {[%emt 0:00:00]} Rf3+ {[%emt 0:00:00]} 44. Kc2 {[%emt 0:00:00]} Rxg3 {[%emt 0:00:00]} 45. b5 {[%emt 0:00:00]} Rf3 {[%emt 0:00:00]} 46. Rb8 {[%emt 0:00:00] Against Rf8} Rf7 {[%emt 0:00:00] [#] Hoping for ...Rg7.} 47. Kd2 {[%emt 0:00:00]} Kf4 {[%emt 0:00:00]} 48. Ke2 {[%emt 0:00:00]} g3 {[%emt 0:00:00]} 49. Rd8 {[%emt 0:01:41]} Rg7 {[%emt 0:01:15]} 50. Kf1 {[%emt 0:00:31]} e5 {[%emt 0:02:00][%cal Be6e5,Be5e4,Be4e3][%mdl 32]} 51. Rxd6 {[%emt 0:00:36]} g2+ {[%emt 0:00:19]} 52. Kg1 {[%emt 0:00:04] [#] And now c5 would win.} e4 $1 {[%emt 0:00:07]} 53. b6 {[%emt 0:01:15]} e3 {[%emt 0:00:54] ( -> ...Re7)} 54. Re6 {[%emt 0:01:49] Against Re7. aiming for c5.} Kf3 {[%emt 0:00:30]} 55. Rf6+ {[%emt 0:00:58]} Kg3 {[%emt 0:00:36]} 56. Re6 {[%emt 0:00:35]} Kf3 {[%emt 0:00:04]} 57. Rf6+ {[%emt 0:00:44]} Kg3 {[%emt 0:00:04]} 58. Re6 {[%emt 0:00:49]} Kf3 {[%emt 0:00:05]} 59. Rf6+ {[%emt 0:00:22]} Kg3 {[%emt 0:00:02] Weighted Error Value: White=0.06 (flawless) /Black=0.05 (flawless)} 1/2-1/2

[Event "Prague Festival Open 2022"]
[Site "Prague"]
[Date "2022.06.11"]
[Round "3.1"]
[White "Vojta, Jakub"]
[Black "Motylev, Alexander"]
[Result "0-1"]
[ECO "A14"]
[WhiteElo "2396"]
[BlackElo "2633"]
[Annotator "TA"]
[PlyCount "72"]
[EventDate "2022.06.10"]
[EventType "swiss"]
[EventCountry "CZE"]
[SourceTitle "playchess.com"]
[Source "ChessBase"]
[SourceQuality "1"]
[TimeControl "40/5400+30:1800+30"]

{[%evp 14,72,34,18,28,16,21,16,20,19,27,9,10,25,29,31,17,14,22,10,6,6,18,0,23,0,0,0,0,0,74,0,0,-65,-64,-119,-115,-164,-162,-171,-157,-162,-152,-153,-150,-176,-175,-212,-186,-403,-424,-387,-387,-717,-704,-29988,-29989,-29989,-29990,-29990,-29991]} 1. c4 {[%emt 0:00:02]} e6 {[%emt 0:00:10]} 2. g3 {[%emt 0:00:12]} d5 {[%emt 0:00:06]} 3. Bg2 {[%emt 0:00:05]} Nf6 {[%emt 0:00:41]} 4. Nf3 {[%emt 0:00:07]} Be7 {[%emt 0:00:05]} 5. O-O {[%emt 0:00:05]} O-O {[%emt 0:00:04]} 6. b3 {[%emt 0:00:03]} d4 $1 {[%emt 0:00:37][%mdl 4] is now more promising than 6...c5.} 7. e3 {[%emt 0:00:46]} Nc6 {[%emt 0:00:22]} 8. Bb2 {[%emt 0:01:02][%cal Re3d4]} e5 {[%emt 0:00:22] A14: English Opening: 1...e6 with b3 by White.} 9. exd4 {[%emt 0:00:06]} exd4 {[%emt 0:01:26]} 10. d3 {[%emt 0:02:31]} Bf5 {[%emt 0:01:24] The position is equal.} 11. Na3 {[%emt 0:07:52]} Nb4 {[%emt 0:11:07]} 12. Ne1 {[%emt 0:06:08]} ({Reject} 12. Nxd4 Bxd3 13. Bxb7 Rb8 $11) 12... c5 {[%emt 0:00:30]} 13. Bxb7 {[%emt 0:04:46]} Rb8 {[%emt 0:00:11]} 14. Bg2 {[%emt 0:00:24]} Qd7 {[%emt 0:00:33]} 15. Nac2 {[%emt 0:02:29]} Nc6 {[%emt 0:02:22]} 16. Nf3 {[%emt 0:03:01]} h6 {[%emt 0:00:58]} 17. Re1 {[%emt 0:00:46][%cal Ob3b4]} Bd6 {[%emt 0:00:20]} 18. Ba3 {[%emt 0:04:37]} a5 {[%emt 0:10:18]} 19. Qd2 {[%emt 0:04:58]} Rfc8 {[%emt 0:01:12] [#]} 20. Nh4 $146 {[%emt 0:07:28]} ({Predecessor:} 20. Rab1 Rb6 21. Nh4 Bh7 22. f4 Rcb8 23. Nf3 Qc7 24. Rb2 Ng4 25. Qe2 Bf5 26. Nh4 {0-1 (35) Vujadinovic,M (2147)-Johnson,H (1950) LSS email 2013}) 20... Bh7 {[%emt 0:01:01]} 21. f4 {[%emt 0:01:15]} a4 {[%emt 0:00:39]} (21... Nb4 $11 {keeps the balance.}) 22. bxa4 {[%emt 0:12:20]} (22. Bxc6 $16 Qxc6 23. b4) 22... Qa7 $11 {[%emt 0:17:13]} 23. a5 {[%emt 0:14:46] [#]} (23. Rab1 $11) 23... Bc7 $1 $15 {[%emt 0:06:20][%cal Bd6c7,Bc7a5,Ba5c3][%mdl 32]} 24. Qe2 {[%emt 0:11:13]} ({Much weaker is} 24. Bxc6 Bxa5 25. Bb4 Rxb4 26. Nxb4 Bxb4 $17) ({Better is} 24. Qd1 $15) (24. Re2 Nxa5) 24... Bxa5 $17 {[%emt 0:02:47]} 25. Red1 {[%emt 0:00:57]} (25. Rf1 $17 {was necessary.}) 25... Bc3 $19 {[%emt 0:07:44]} 26. Rab1 {[%emt 0:00:02]} Nb4 {[%emt 0:00:39]} 27. Nxb4 {[%emt 0:07:57]} cxb4 {[%emt 0:01:03]} 28. Bc1 {[%emt 0:00:45]} Rxc4 {[%emt 0:00:58][%cal Bc8c4,Bc4c5,Bc5f5,Bf5f2,Bf2f4][%mdl 32]} 29. f5 {[%emt 0:03:52]} Rc5 {[%emt 0:00:44]} 30. a3 {[%emt 0:03:10]} Re8 {[%emt 0:23:30]} 31. Qa2 {[%emt 0:01:20]} (31. Qc2 {was worth a try.}) 31... Bxf5 {[%emt 0:01:18]} 32. Nxf5 {[%emt 0:00:04]} Rxf5 {[%emt 0:00:04]} 33. Qb3 $2 {[%emt 0:01:04]} (33. Qc4 Qe7 34. Rf1 Rxf1+ 35. Bxf1 bxa3 36. Qa4) 33... Re2 {[%emt 0:02:50] Threatens to win with ...Qe7.} 34. axb4 {[%emt 0:00:41]} Rff2 {[%emt 0:00:50] Black mates.} 35. Bc6 {[%emt 0:00:29]} Qe7 {[%emt 0:01:40]} 36. Bf4 {[%emt 0:00:29] [#]} Rxf4 $1 {[%emt 0:01:18][%mdl 512] Weighted Error Value: White=0.56/Black=0.07 (flawless)} 0-1

[Event "Prague Festival Open 2022"]
[Site "Prague"]
[Date "2022.06.11"]
[Round "3.2"]
[White "Nemec, Jachym"]
[Black "Huzman, Alexander"]
[Result "1/2-1/2"]
[ECO "D23"]
[WhiteElo "2367"]
[BlackElo "2541"]
[Annotator "TA"]
[PlyCount "43"]
[EventDate "2022.06.10"]
[EventType "swiss"]
[EventCountry "CZE"]
[SourceTitle "playchess.com"]
[Source "ChessBase"]
[SourceQuality "1"]
[TimeControl "40/5400+30:1800+30"]

{[%evp 16,43,11,5,5,5,25,16,24,22,26,16,25,25,24,8,21,2,35,23,22,20,27,29,24,0,24,0,35,0]} 1. d4 {[%emt 0:00:03]} d5 {[%emt 0:00:22]} 2. c4 {[%emt 0:00:05]} c6 {[%emt 0:00:06]} 3. Nf3 {[%emt 0:00:06]} Nf6 {[%emt 0:00:09]} 4. Qb3 {[%emt 0:00:53]} dxc4 {[%emt 0:01:02]} 5. Qxc4 {[%emt 0:00:07]} Bf5 {[%emt 0:00:09]} 6. g3 {[%emt 0:00:05]} e6 {[%emt 0:00:11]} 7. Bg2 {[%emt 0:00:05]} Nbd7 {[%emt 0:00:14]} 8. O-O {[%emt 0:00:07]} Be7 {[%emt 0:00:10]} 9. e3 {[%emt 0:00:06]} O-O {[%emt 0:02:32] D23: Queen's Gambit Accepted: 3 Nf3 Nf6 sidelines.} 10. Qe2 {[%emt 0:00:17]} h6 {[%emt 0:01:47]} 11. Rd1 {[%emt 0:02:41]} Qa5 {[%emt 0:05:45] The position is equal. 11...Bh7 is setting a new trend.} 12. Nc3 {[%emt 0:03:57]} Ne4 {[%emt 0:02:07]} 13. Bd2 {[%emt 0:03:46] [#] Strongly threatening Nxe4.} (13. Nxe4 {seems wilder.} Bxe4 14. Ne1 Bxg2 15. Bd2) 13... Nxd2 {[%emt 0:04:22]} 14. Nxd2 {[%emt 0:18:08][%cal Bf3d2,Bd2c4,Bc4e5][%mdl 32] [#]} Bg6 $146 {[%emt 0:01:41]} ({Predecessor:} 14... Rfe8 15. Nc4 Qa6 16. Rac1 Nb6 17. Ne5 Qxe2 18. Nxe2 Red8 19. Nf4 g5 20. Nfd3 f6 {½-½ (43) Rajesh,V (2358)-Arun Prasad,S (2509) Dubai 2016}) 15. Bf3 {[%emt 0:01:22]} Qc7 {[%emt 0:01:42]} 16. Nc4 {[%emt 0:00:13]} Nb6 {[%emt 0:14:41]} 17. Ne5 {[%emt 0:00:25]} Bh7 {[%emt 0:00:04]} 18. Rac1 $1 {[%emt 0:02:03]} Bf6 {[%emt 0:00:39]} 19. Ng4 {[%emt 0:00:30]} Be7 {[%emt 0:00:05]} 20. Ne5 {[%emt 0:00:42]} Bf6 {[%emt 0:00:11]} 21. Ng4 {[%emt 0:02:50]} Be7 {[%emt 0:00:13]} 22. Ne5 {[%emt 0:00:05] An even fight not without its subleties.  Weighted Error Value: White=0.07 (flawless) /Black=0.06 (flawless)} 1/2-1/2

[Event "Prague Festival Open 2022"]
[Site "Prague"]
[Date "2022.06.11"]
[Round "3.3"]
[White "Stefansson, Hannes"]
[Black "Molenda, Marcin"]
[Result "1-0"]
[ECO "B40"]
[WhiteElo "2534"]
[BlackElo "2368"]
[Annotator "TA"]
[PlyCount "63"]
[EventDate "2022.06.10"]
[EventType "swiss"]
[EventCountry "CZE"]
[SourceTitle "playchess.com"]
[Source "ChessBase"]
[SourceQuality "1"]
[TimeControl "40/5400+30:1800+30"]

{[%evp 9,63,5,5,2,10,9,14,9,22,12,24,8,22,13,23,0,0,0,24,2,0,0,11,11,16,0,7,0,0,0,35,31,16,-4,15,10,103,119,103,89,120,115,110,118,114,75,116,114,176,179,146,143,614,637,615,593]} 1. e4 {[%emt 0:00:07]} c5 {[%emt 0:01:47]} 2. Nf3 {[%emt 0:00:16]} e6 {[%emt 0:01:01]} 3. b3 {[%emt 0:00:43]} b6 {[%emt 0:01:19]} 4. d4 {[%emt 0:00:28]} cxd4 {[%emt 0:00:20]} 5. Nxd4 {[%emt 0:00:08]} Bb7 {[%emt 0:01:24]} 6. Nd2 {[%emt 0:00:30] B40: Sicilian: 2...e6, Unusual lines.} d6 {[%emt 0:03:18]} 7. Bb2 {[%emt 0:04:42]} Nf6 {[%emt 0:00:38]} 8. Bd3 {[%emt 0:00:48] The position is equal.} Nbd7 {[%emt 0:01:01]} 9. O-O {[%emt 0:03:13]} Be7 {[%emt 0:01:36]} 10. Re1 {[%emt 0:07:38]} O-O {[%emt 0:03:06]} 11. c4 {[%emt 0:00:20] [#]} a6 $146 {[%emt 0:02:21]} ({Predecessor:} 11... Nc5 12. Bc2 Qc7 13. b4 Ncd7 14. Qe2 d5 15. exd5 Bxb4 16. dxe6 Bxd2 17. Qxd2 Ng4 {1-0 (29) Abbasov,O (1759)-Elkina,Y (1635) Dimitrovgrad 2013}) 12. b4 {[%emt 0:06:23]} Qc7 {[%emt 0:00:23]} 13. Rc1 {[%emt 0:03:19]} Rac8 {[%emt 0:00:48]} 14. Bb1 {[%emt 0:04:06]} Rfe8 {[%emt 0:01:43]} 15. Qb3 {[%emt 0:01:19]} Qb8 {[%emt 0:02:10]} 16. a3 {[%emt 0:04:12]} d5 {[%emt 0:14:52]} 17. cxd5 {[%emt 0:16:04]} Rxc1 {[%emt 0:00:58]} 18. Rxc1 {[%emt 0:00:06]} exd5 {[%emt 0:00:31]} 19. exd5 {[%emt 0:09:32]} Qf4 {[%emt 0:06:44]} (19... Bd6 $5 {[%cal Rd6h2]} 20. Nf1 Bxd5 $11) 20. Nf1 {[%emt 0:07:37] And now Ne3 would win.} Bxd5 {[%emt 0:01:03]} 21. Qg3 {[%emt 0:00:29]} Bd6 {[%emt 0:02:58][%cal Of4c1] [#] Hoping for ...Qxc1!} 22. Ne3 $40 {[%emt 0:05:27][%mdl 128] White has some attack.} Ne4 {[%emt 0:06:13]} (22... Be5 $11) 23. Qxf4 $16 {[%emt 0:01:19]} ({Stronger than} 23. Nxd5 Qxc1+ 24. Bxc1 Nxg3 $17) 23... Bxf4 {[%emt 0:00:10]} 24. Ndf5 {[%emt 0:01:42][%cal Of5e7] Ne7+! is the strong threat.} (24. Nxd5 $2 Bxc1 25. Bxc1 {[#]} Nc3 $1 {[%mdl 512]} 26. Bxh7+ Kxh7 $19) 24... Ndf6 {[%emt 0:24:19]} 25. g3 {[%emt 0:00:16]} Bxe3 {[%emt 0:01:30]} 26. Nxe3 {[%emt 0:00:24]} Ba8 {[%emt 0:00:40]} 27. Ba2 {[%emt 0:04:56]} Ng5 {[%emt 0:03:59]} 28. Rc7 {[%emt 0:00:40]} Ng4 {[%emt 0:00:53]} 29. h4 $18 {[%emt 0:02:09]} Nf3+ {[%emt 0:08:24]} 30. Kf1 {[%emt 0:00:14]} Nge5 {[%emt 0:00:10][%mdl 8192]} (30... Nh6 $16 31. Ra7 Nh2+ 32. Ke2 Bf3+ 33. Kd2 Rd8+ 34. Kc1 Rc8+ 35. Kb1 Ra8) 31. Bxe5 {[%emt 0:00:45]} Nxe5 {[%emt 0:00:35]} 32. f4 {[%emt 0:00:13] Weighted Error Value: White=0.05 (flawless) /Black=0.47} 1-0

[Event "Prague Festival Open 2022"]
[Site "Prague"]
[Date "2022.06.11"]
[Round "3.4"]
[White "Mladek, Richard"]
[Black "Iniyan, P."]
[Result "1/2-1/2"]
[ECO "E52"]
[WhiteElo "2361"]
[BlackElo "2518"]
[Annotator "TA"]
[PlyCount "81"]
[EventDate "2022.06.10"]
[EventType "swiss"]
[EventCountry "CZE"]
[SourceTitle "playchess.com"]
[Source "ChessBase"]
[SourceQuality "1"]
[TimeControl "40/5400+30:1800+30"]

{[%evp 19,81,6,20,27,23,29,32,22,20,29,29,30,27,3,53,16,18,22,0,0,0,-29,-19,-15,84,63,172,173,242,249,243,256,239,222,229,184,198,194,184,101,127,98,71,80,93,54,28,0,0,0,54,0,0,-15,-15,-15,-15,-15,0,0,0,0,0,0]} 1. d4 {[%emt 0:00:03]} Nf6 {[%emt 0:08:20]} 2. c4 {[%emt 0:00:01]} e6 {[%emt 0:00:15]} 3. Nc3 {[%emt 0:00:04]} Bb4 {[%emt 0:00:09]} 4. e3 {[%emt 0:00:04]} O-O {[%emt 0:00:11]} 5. Bd2 {[%emt 0:00:02]} d5 {[%emt 0:00:58]} 6. Nf3 {[%emt 0:00:08][%cal Bg1f3,Bf3e5,Be5g4][%mdl 32]} b6 {[%emt 0:00:33]} 7. Rc1 {[%emt 0:00:12]} Bb7 {[%emt 0:03:23]} 8. cxd5 {[%emt 0:00:06]} exd5 {[%emt 0:00:09]} 9. Bd3 {[%emt 0:00:06]} a6 {[%emt 0:10:05]} 10. O-O {[%emt 0:00:08]} Bd6 $1 {[%emt 0:00:40] The main line 10...Bd6 scores better than 10...Nbd7.} 11. Ne5 {[%emt 0:00:06] E52: Nimzo-Indian: Rubinstein: 4...0-0 5 Nf3 d5 6 Bd3 b6.} c5 {[%emt 0:00:57]} 12. f4 {[%emt 0:00:22]} Nc6 {[%emt 0:11:20]} 13. Ng4 {[%emt 0:03:07] White is slightly better.} Be7 {[%emt 0:23:19]} 14. dxc5 {[%emt 0:02:25]} bxc5 {[%emt 0:01:34]} 15. Bb1 {[%emt 0:00:35]} g6 {[%emt 0:05:03]} 16. Na4 {[%emt 0:07:55]} c4 {[%emt 0:07:12]} (16... Nxg4 $11 17. Qxg4 c4) 17. Bc3 {[%emt 0:14:40] next Bxf6 is good for White.} Nxg4 {[%emt 0:00:24]} 18. Qxg4 {[%emt 0:00:09] [#]} f5 $146 {[%emt 0:00:44]} ({Predecessor:} 18... Bf6 19. f5 Bxc3 20. Nxc3 Ne5 21. Qg3 Re8 22. Rcd1 Qa5 23. Rd4 Rad8 24. Qg5 Qc5 {1-0 (49) Oye Stromberg,A (2157)-Kvaloy,A (2330) Fagernes 2022}) 19. Qf3 {[%emt 0:05:46]} Na7 {[%emt 0:00:51]} 20. Rfd1 {[%emt 0:08:32]} Bc6 {[%emt 0:02:15]} 21. b3 {[%emt 0:00:19]} cxb3 {[%emt 0:01:48]} (21... d4 22. Qf1 $16) (21... Ba3 $11 {keeps the balance.} 22. Nb2 Qe7) 22. axb3 $16 {[%emt 0:01:04]} Qb8 {[%emt 0:00:10]} ({Black should try} 22... Bf6 $14) 23. Be5 $18 {[%emt 0:09:57]} Qxb3 {[%emt 0:01:07]} (23... Qb7 $142 24. Nc5 Bxc5 25. Rxc5 Rac8) 24. Nc3 $1 {[%emt 0:00:13] Strongly threatening Ba2.} Bf6 {[%emt 0:04:03]} 25. Ba2 $1 {[%emt 0:03:54][%cal Bb1a2,Ba2d5,Bd5c6][%mdl 32]} ({Inferior is} 25. Nxd5 Bxe5 26. fxe5 Bxd5 $14) 25... Qb7 {[%emt 0:00:14]} 26. Nxd5 {[%emt 0:14:26]} ({Don't play} 26. Bxd5+ Kh8 27. Rb1 Qc8) 26... Bxe5 {[%emt 0:00:20]} 27. fxe5 {[%emt 0:02:31]} Kh8 {[%emt 0:01:19]} 28. Qf4 $1 {[%emt 0:02:04]} Rae8 {[%emt 0:02:56] [#]} 29. Qd4 {[%emt 0:03:17] Against Qb2} (29. Nb4 $1 $18 {Hoping for e6.} Be4 {[#]} 30. e6 $1) 29... Bxd5 {[%emt 0:02:29]} 30. Bxd5 {[%emt 0:00:42]} Qg7 {[%emt 0:00:16]} 31. e6 {[%emt 0:00:59] And now Qxg7+ would win.} Nb5 {[%emt 0:01:06]} 32. Qc5 {[%emt 0:04:38]} Re7 $1 {[%emt 0:02:12]} 33. Bc6 {[%emt 0:09:42]} (33. Bb3 $5 {[%cal Rd1d7]}) 33... Rxe6 {[%emt 0:04:20]} 34. Rd7 {[%emt 0:00:59]} Re5 {[%emt 0:00:54]} (34... Qf6 $11 35. Bxb5 axb5) 35. Qb6 {[%emt 0:04:55]} ({Better is} 35. Qb4 $1 $14 Qf6 36. Bxb5 Rxb5 37. Qd4 Qxd4 38. exd4) 35... Re7 $11 {[%emt 0:00:55] The position is equal.} 36. Rcd1 {[%emt 0:02:04][%cal Bc1d1,Bd1d7,Bd7d8,Bd8f8][%mdl 32]} Rxd7 {[%emt 0:03:26]} 37. Rxd7 {[%emt 0:00:05]} Qa1+ {[%emt 0:00:10]} 38. Kf2 {[%emt 0:00:01] Black must now prevent Qb7. Active counter play!} Qb2+ {[%emt 0:02:09]} 39. Kf3 {[%emt 0:00:34]} f4 {[%emt 0:00:49] aiming for ...fxe3+.} 40. Rd8 {[%emt 0:03:00]} Qf6 {[%emt 0:00:08]} 41. Rxf8+ {[%emt 0:01:24] Black escapes into a draw.  Weighted Error Value: White=0.14 (very precise) /Black=0.18 (very precise)} 1/2-1/2

[Event "Prague Festival Open 2022"]
[Site "Prague"]
[Date "2022.06.11"]
[Round "3.5"]
[White "Simek, Petr"]
[Black "Alsina Leal, Daniel"]
[Result "1/2-1/2"]
[ECO "D27"]
[WhiteElo "2332"]
[BlackElo "2508"]
[Annotator "TA"]
[PlyCount "83"]
[EventDate "2022.06.10"]
[EventType "swiss"]
[EventCountry "CZE"]
[SourceTitle "playchess.com"]
[Source "ChessBase"]
[SourceQuality "1"]
[TimeControl "40/5400+30:1800+30"]

{[%evp 15,83,33,35,27,12,28,40,31,46,27,29,27,25,20,26,0,0,0,0,-4,-8,0,0,0,0,0,0,0,0,0,12,0,0,0,0,0,0,0,0,0,97,97,95,94,108,66,71,45,69,60,76,64,65,39,37,41,62,57,52,41,98,10,23,19,67,0,0,0,54,0]} 1. d4 {[%emt 0:00:02]} d5 {[%emt 0:12:46]} 2. c4 {[%emt 0:00:06]} dxc4 {[%emt 0:00:13]} 3. e3 {[%emt 0:00:26]} Nf6 {[%emt 0:00:07]} 4. Bxc4 {[%emt 0:00:10]} e6 {[%emt 0:00:06]} 5. Nf3 {[%emt 0:00:06]} c5 {[%emt 0:00:07]} 6. O-O {[%emt 0:00:07]} a6 {[%emt 0:00:03]} 7. dxc5 {[%emt 0:00:38]} Bxc5 {[%emt 0:00:19]} 8. Qxd8+ {[%emt 0:00:06]} Kxd8 {[%emt 0:00:05]} 9. Ne5 {[%emt 0:02:32] D27: Queen's Gambit Accepted: Classical main line: 7 e4!? and 7 a4.} Ke7 {[%emt 0:00:23]} 10. Be2 {[%emt 0:00:05]} Nbd7 {[%emt 0:10:06]} 11. Nc4 {[%emt 0:23:18]} b6 {[%emt 0:01:50]} 12. Nbd2 {[%emt 0:10:09]} a5 {[%emt 0:02:42][%cal Ba6a5,Ba5a4][%mdl 32]} 13. Nb3 {[%emt 0:01:02]} Ba6 {[%emt 0:03:21]} 14. Nxc5 {[%emt 0:06:52]} bxc5 {[%emt 0:00:18]} 15. b3 {[%emt 0:02:53]} Rhb8 {[%emt 0:04:45][%cal Oa5a4]} 16. Ba3 {[%emt 0:38:47]} a4 {[%emt 0:11:38]} 17. Rfb1 {[%emt 0:01:52]} Nd5 {[%emt 0:02:25] [#] Hoping for ...Nc3.} 18. Bf1 $146 {[%emt 0:01:45]} ({Predecessor:} 18. Bf3 axb3 19. axb3 Bxc4 20. bxc4 Rxa3 21. cxd5 Ne5 22. dxe6 Nxf3+ 23. gxf3 Kxe6 24. Rxb8 Rxa1+ {0-1 (43) Martynov,R (2269)-Studer,N (2405) Tallinn 2019}) 18... Nb4 {[%emt 0:05:48] aiming for ...Nc2.} 19. Rc1 {[%emt 0:03:18] Prevents Nc2.} ({Don't blunder} 19. bxa4 $2 Bxc4 20. Bxc4 Nc2 21. Bxc5+ (21. Rxb8 $2 Rxb8 22. Bxc5+ Nxc5 $19) 21... Nxc5 22. Rxb8 Rxb8 $19) 19... Bb5 {[%emt 0:08:29]} 20. Nb2 {[%emt 0:05:28]} axb3 {[%emt 0:15:35]} 21. axb3 {[%emt 0:00:13]} Bxf1 {[%emt 0:00:47]} 22. Kxf1 {[%emt 0:00:06]} Na6 {[%emt 0:01:04]} 23. Na4 {[%emt 0:01:24][%cal Ra4c5]} Ke8 {[%emt 0:01:28]} 24. Rc3 {[%emt 0:00:31]} Nf6 {[%emt 0:05:04]} 25. Rac1 {[%emt 0:00:32]} Ne4 {[%emt 0:05:06]} 26. R3c2 {[%emt 0:00:30]} c4 {[%emt 0:00:44]} 27. bxc4 {[%emt 0:00:09]} Nc7 {[%emt 0:03:33]} (27... Rb3 $11 28. Nc3 Nxf2 29. Rxf2 Rxa3) 28. Nc3 $16 {[%emt 0:00:03]} Nxc3 {[%emt 0:03:59]} 29. Rxc3 {[%emt 0:00:05]} Ra6 {[%emt 0:00:28]} 30. Bc5 {[%emt 0:01:15]} e5 {[%emt 0:01:37]} 31. e4 {[%emt 0:00:05]} Rc6 {[%emt 0:00:15]} 32. Be3 {[%emt 0:00:07]} Ne6 {[%emt 0:00:36]} 33. c5 {[%emt 0:00:23]} Rb4 {[%emt 0:00:28]} 34. Rc4 {[%emt 0:00:44]} Rxc4 {[%emt 0:00:37]} 35. Rxc4 $14 {[%emt 0:00:02][%mdl 4096] Endgame KRB-KRN} Kd7 {[%emt 0:00:07]} 36. Ke2 {[%emt 0:00:48]} Ra6 {[%emt 0:00:29]} 37. Rb4 {[%emt 0:00:45]} Kc7 {[%emt 0:00:39] [#]} (37... Ra2+ $14 38. Kd3 Kc6) 38. Rb5 {[%emt 0:01:32]} (38. Kd3 $1 $16) 38... Ra2+ {[%emt 0:00:24]} 39. Kf3 {[%emt 0:00:32]} Ra3 {[%emt 0:00:45]} (39... h5 $11) 40. Ke2 {[%emt 0:00:25]} ({White should play} 40. Kg4 $1 $14) 40... Ra2+ $11 {[%emt 0:00:13]} 41. Kf3 {[%emt 0:04:20]} (41. Ke1 $11) 41... Ra3 $14 {[%emt 0:03:52] White must now prevent ...Nd4+.} 42. Ke2 {[%emt 0:00:54] Weighted Error Value: White=0.12 (very precise) /Black=0.12 (very precise)} (42. Kg4 $1 $14) 1/2-1/2